bitfinex/quotes_SOLUSD_20240813
["timestamp","ask_amount","ask_price","bid_price","bid_amount"]
[1723555897686,0.8187459,146.49,146.44,0.37647]
[1723555897904,0.8187459,146.49,146.46,0.12549]
[1723555898087,0.8187459,146.49,146.46,0.25098]
[1723555898284,0.8187459,146.49,146.47,0.12549]
[1723555898485,7.6452459,146.49,146.47,0.25098]
[1723555898658,7.6452459,146.49,146.46,45.25098]
[1723555898659,0.8187459,146.49,146.46,45.25098]
[1723555898862,0.8187459,146.49,146.39,17.0768]
[1723555899086,17.0686,146.47,146.39,17.0768]
[1723555899295,6.8283,146.45,146.41,6.8299]
[1723555899616,6.8273,146.47,146.43,6.8289]
[1723555899775,6.828,146.46,146.42,6.8295]
[1723555900098,64.1276,146.48,146.38,37.0781]
[1723555900267,6.8304,146.41,146.35,295.1577]
[1723555900468,6.8304,146.41,146.35,38.6577]
[1723555900667,6.8298,146.42,146.37,6.8316]
[1723555900896,6.8289,146.44,146.39,6.8306]
[1723555901066,20.0,146.47,146.41,6.8297]
[1723555901364,20.0,146.47,146.41,0.12549]
[1723555901365,1.70727783,146.46,146.41,0.12549]
[1723555901557,20.0,146.48,146.41,52.20647]
[1723555901764,6.8278,146.46,146.42,6.95509]
[1723555901961,6.8278,146.46,146.43,45.37647]
[1723555902166,0.8187459,146.49,146.43,52.20527]
[1723555902393,6.8278,146.46,146.44,45.0]
[1723555902605,6.8282,146.45,146.44,45.0]
[1723555902770,6.8278,146.46,146.44,45.12549]
[1723555902962,0.8187459,146.49,146.45,0.12549]
[1723555903175,6.827,146.48,146.45,0.50196]
[1723555903372,6.8278,146.46,146.45,0.37647]
[1723555903809,47.06,146.48,146.32,47.06]
[1723555904417,47.06,146.48,146.38,17.0783]
[1723555904418,6.83,146.42,146.38,17.0783]
[1723555904585,6.8304,146.41,146.36,6.8323]
[1723555904789,6.8304,146.41,146.37,6.8319]
[1723555905011,6.8293,146.43,146.38,6.8313]
[1723555905313,6.8306,146.4,146.36,6.8323]
[1723555905513,8.53752293,146.42,146.37,6.8319]
[1723555905682,6.83,146.42,146.37,6.8319]
[1723555905885,6.8301,146.41,146.37,6.8319]
[1723555906208,6.8301,146.41,146.36,23.9129]
[1723555906413,6.8301,146.41,146.37,6.8318]
[1723555906577,6.8293,146.43,146.4,0.12549]
[1723555906772,6.8293,146.43,146.4,45.50196]
[1723555906993,6.8288,146.44,146.4,52.33246]
[1723555907195,6.8288,146.44,146.4,45.50196]
[1723555907400,6.8301,146.41,146.4,0.12549]
[1723555907617,1.70743866,146.44,146.31,6.231]
[1723555907917,6.832,146.37,146.32,23.9194]
[1723555908281,17.0764,146.41,146.32,17.0852]
[1723555908282,1.7080932,146.4,146.32,17.0852]
[1723555908491,6.8334,146.34,146.29,6.8353]
[1723555908788,6.6023,146.36,146.28,23.9257]
[1723555908994,1.70855174,146.35,146.28,23.9257]
[1723555909224,6.8343,146.33,146.28,23.9257]
[1723555909396,6.8335,146.34,146.29,6.8356]
[1723555910117,6.6023,146.36,146.3,17.0871]
[1723555910423,13.4348,146.36,146.32,6.8342]
[1723555910758,1.70854543,146.35,146.28,6.8358]
[1723555910938,6.8339,146.33,146.28,6.8358]
[1723555911125,6.8334,146.34,146.29,6.8357]
[1723555911524,8.5424967,146.33,146.28,6.8361]
[1723555911730,6.6023,146.36,146.27,17.0912]
[1723555911731,6.8348,146.31,146.27,17.0912]
[1723555912430,6.8344,146.32,146.27,23.9277]
[1723555912755,6.8342,146.33,146.28,6.8361]
[1723555912958,6.8342,146.33,146.27,17.0912]
[1723555913257,6.8342,146.33,146.28,6.8361]
[1723555913459,6.8344,146.32,146.28,6.8361]
[1723555913631,6.8344,146.32,146.27,23.9277]
[1723555913827,18.79152089,146.35,146.28,45.0]
[1723555914046,6.8349,146.31,146.28,45.0]
[1723555914227,6.8349,146.31,146.27,51.8366]
[1723555914429,6.8344,146.32,146.28,6.8361]
[1723555914747,6.8344,146.32,146.29,45.0]
[1723555914956,6.8339,146.33,146.28,51.8361]
[1723555915155,53.6623,146.36,146.28,51.8361]
[1723555915156,6.8343,146.32,146.28,51.8361]
[1723555915549,6.8339,146.33,146.28,51.8361]
[1723555915734,70.744,146.36,146.26,17.0921]
[1723555915934,6.8349,146.31,146.26,23.9291]
[1723555916247,6.8348,146.31,146.27,6.8363]
[1723555917042,6.8342,146.33,146.28,6.8361]
[1723555917238,6.8356,146.3,146.29,45.0]
[1723555917431,6.8356,146.3,146.25,6.8375]
[1723555917432,39.32,146.32,146.25,6.8375]
[1723555917636,6.8353,146.3,146.25,6.8375]
[1723555917866,6.8353,146.3,146.25,17.0935]
[1723555918038,6.8352,146.3,146.25,17.0935]
[1723555918243,6.8359,146.29,146.25,23.931]
[1723555918442,56.4066,146.32,146.23,6.8384]
[1723555918664,39.32,146.3,146.24,6.8376]
[1723555918855,39.32,146.3,146.22,17.0969]
[1723555919160,6.8366,146.27,146.23,6.8381]
[1723555919466,39.32,146.28,146.19,17.1005]
[1723555920654,6.8372,146.26,146.21,6.8393]
[1723555920849,6.8372,146.26,146.22,6.8389]
[1723555921236,1.7096827,146.25,146.2,23.939]
[1723555921442,1.7096827,146.25,146.15,6.2615]
[1723555921443,16.3262,146.25,146.18,6.8407]
[1723555921644,16.3262,146.25,146.17,23.9441]
[1723555921645,1.70987636,146.24,146.17,23.9441]
[1723555921870,6.8393,146.22,146.17,23.9441]
[1723555922165,8.54960911,146.21,146.17,17.1029]
[1723555922344,6.841,146.18,146.14,23.9485]
[1723555922540,62.5507,146.23,146.13,6.843]
[1723555922541,8.551764,146.17,146.13,6.843]
[1723555922743,6.8413,146.17,146.13,6.843]
[1723555922948,1.71059147,146.16,146.11,17.1096]
[1723555923144,6.8423,146.15,146.11,17.1096]
[1723555923339,6.0469,146.16,146.08,17.1134]
[1723555923647,6.8442,146.11,146.08,17.1134]
[1723555923847,6.8438,146.12,146.08,23.9589]
[1723555924080,6.843,146.14,146.09,6.845]
[1723555924258,6.0469,146.16,146.12,6.8436]
[1723555924460,12.8888,146.16,146.12,6.8436]
[1723555924655,6.0469,146.16,146.1,23.9549]
[1723555924851,6.843,146.14,146.06,17.1152]
[1723555925063,6.843,146.14,146.09,6.845]
[1723555925252,12.8887,146.16,146.11,6.844]
[1723555925449,6.0469,146.16,146.11,6.8441]
[1723555925704,6.0469,146.16,146.09,17.1124]
[1723555926054,12.8887,146.16,146.11,6.8437]
[1723555926273,6.0469,146.16,146.12,45.37647]
[1723555926474,12.889,146.16,146.12,52.09458]
[1723555926654,12.889,146.16,146.12,45.25098]
[1723555926848,6.0469,146.16,146.12,52.09458]
[1723555927157,12.8887,146.16,146.12,45.25098]
[1723555927469,6.0469,146.16,146.14,0.12549]
[1723555927671,6.0934,146.2,146.14,0.12549]
[1723555927885,6.841,146.18,146.14,45.25098]
[1723555928252,6.8405,146.19,146.15,6.8422]
[1723555928454,6.0934,146.2,146.17,0.12549]
[1723555928666,6.0934,146.2,146.16,45.0]
[1723555929183,6.4639,146.24,146.17,17.47887]
[1723555929479,6.8391,146.22,146.19,0.12549]
[1723555929790,6.4639,146.24,146.19,17.47637]
[1723555929951,13.302,146.24,146.2,45.12549]
[1723555930150,6.4639,146.24,146.21,0.25098]
[1723555930476,21.8565,146.26,146.21,7.09038]
[1723555930685,15.0193,146.26,146.22,45.25098]
[1723555930985,21.8566,146.26,146.22,0.25098]
[1723555931181,6.8377,146.25,146.22,0.25098]
[1723555931879,15.0193,146.26,146.21,0.25098]
[1723555931880,1.70963491,146.24,146.21,0.25098]
[1723555932086,6.8377,146.25,146.22,0.12549]
[1723555932287,6.6425,146.28,146.22,18.71451839]
[1723555932458,6.4035,146.32,146.23,45.25098]
[1723555932781,6.4035,146.32,146.26,0.12549]
[1723555932972,6.4035,146.32,146.26,6.96219]
[1723555933278,6.4035,146.32,146.27,0.25098]
[1723555933484,13.2382,146.32,146.28,0.12549]
[1723555933692,6.8338,146.33,146.28,52.08708]
[1723555933976,32.7068,146.35,146.29,0.25098]
[1723555934188,6.8352,146.31,146.29,0.12549]
[1723555934482,32.7068,146.35,146.3,0.12549]
[1723555934686,15.624,146.35,146.3,0.25098]
[1723555934983,15.624,146.35,146.29,0.12549]
[1723555935166,6.8357,146.29,146.28,45.0]
[1723555935866,17.0852,146.33,146.19,15.9435]
[1723555936163,6.8358,146.29,146.24,23.9327]
[1723555936370,6.8358,146.29,146.26,0.12549]
[1723555936571,6.8353,146.3,146.26,0.37647]
[1723555936772,6.8371,146.26,146.21,17.0986]
[1723555936957,47.29,146.28,146.16,40.378]
[1723555937281,6.5546,146.29,146.22,17.0966]
[1723555937591,6.8362,146.28,146.24,6.8376]
[1723555937760,6.8367,146.27,146.22,23.9355]
[1723555937966,6.5546,146.29,146.21,6.8394]
[1723555938164,6.5546,146.29,146.19,17.1003]
[1723555938381,66.09062143,146.28,146.16,23.2736]
[1723555938561,47.29,146.28,146.17,6.8412]
[1723555938758,6.8399,146.2,146.16,17.104]
[1723555939079,6.84,146.2,146.15,6.8421]
[1723555939262,6.8376,146.25,146.13,23.1162]
[1723555939586,47.29,146.28,146.21,17.0981]
[1723555939966,6.8372,146.26,146.22,6.96439]
[1723555940283,6.8362,146.28,146.24,6.8376]
[1723555940481,6.8362,146.28,146.26,0.12549]
[1723555940711,6.8374,146.26,146.23,45.25098]
[1723555940871,13.3904,146.29,146.24,7.08888]
[1723555941181,6.8349,146.31,146.26,17.21819]
[1723555941371,6.8349,146.31,146.28,0.12549]
[1723555941578,6.8349,146.31,146.28,0.25098]
[1723555941778,6.0964,146.33,146.29,6.96079]
[1723555942068,6.8335,146.34,146.3,52.21167]
[1723555942256,6.8335,146.34,146.32,0.12549]
[1723555942463,70.8771,146.37,146.3,45.0]
[1723555942674,6.8335,146.34,146.31,0.12549]
[1723555942884,6.5067,146.37,146.31,0.12549]
[1723555943085,6.8343,146.32,146.31,0.12549]
[1723555943302,37.0817,146.36,146.3,0.25098]
[1723555943471,6.8339,146.33,146.31,0.12549]
[1723555943666,6.8332,146.35,146.32,0.12549]
[1723555943867,6.8337,146.34,146.32,0.25098]
[1723555944363,6.5067,146.37,146.33,0.12549]
[1723555944566,6.8325,146.36,146.34,0.12549]
[1723555944762,6.8329,146.35,146.34,0.37647]
[1723555945190,6.8329,146.35,146.34,0.25098]
[1723555945376,6.8329,146.35,146.34,0.12549]
[1723555945577,6.8334,146.34,146.33,0.37647]
[1723555945869,6.833,146.35,146.33,0.37647]
[1723555946289,6.8325,146.36,146.33,0.37647]
[1723555946479,6.4445,146.4,146.34,0.12549]
[1723555946480,6.8315,146.38,146.34,0.12549]
[1723555946690,6.8321,146.37,146.35,0.12549]
[1723555946997,6.4445,146.4,146.33,0.12549]
[1723555946998,6.8329,146.35,146.33,0.12549]
[1723555947191,6.8329,146.35,146.34,0.12549]
[1723555947670,17.0794,146.38,146.32,45.0]
[1723555947871,17.0794,146.38,146.33,0.12549]
[1723555948072,6.8334,146.34,146.33,0.37647]
[1723555948408,6.833,146.35,146.33,0.37647]
[1723555948573,6.8325,146.36,146.33,0.37647]
[1723555948894,6.8325,146.36,146.34,0.12549]
[1723555949103,6.8321,146.37,146.34,0.12549]
[1723555949412,6.8316,146.38,146.34,0.12549]
[1723555949574,6.8295,146.43,146.38,6.8313]
[1723555949900,6.8295,146.43,146.39,45.50196]
[1723555950065,6.1309,146.45,146.39,52.33296]
[1723555950271,6.8286,146.45,146.41,0.12549]
[1723555950472,6.8287,146.44,146.41,45.50196]
[1723555950717,6.8283,146.45,146.41,45.50196]
[1723555951004,6.8278,146.46,146.41,52.33196]
[1723555951177,6.8282,146.45,146.41,45.50196]
[1723555951884,6.8296,146.42,146.41,45.37647]
[1723555952599,6.8293,146.43,146.41,45.37647]
[1723555952907,17.0754,146.41,146.34,6.8333]
[1723555953076,6.8311,146.39,146.34,6.8333]
[1723555953275,6.8316,146.38,146.33,23.9177]
[1723555954282,6.832,146.37,146.34,45.0]
[1723555954978,20.0,146.42,146.35,17.0812]
[1723555955198,46.43106492,146.51,146.38,6.8311]
[1723555955199,6.8295,146.43,146.38,6.8311]
[1723555955396,39.29,146.48,146.39,0.25098]
[1723555955397,56.3578,146.48,146.39,0.25098]
[1723555955579,56.3578,146.48,146.41,0.12549]
[1723555955787,6.8293,146.43,146.41,0.25098]
[1723555956091,6.8293,146.43,146.42,0.37647]
[1723555956294,6.8288,146.44,146.43,0.12549]
[1723555956590,6.8283,146.45,146.43,0.25098]
[1723555956791,6.8283,146.45,146.44,0.37647]
[1723555956999,7.4270459,146.49,146.44,0.37647]
[1723555957000,0.8187459,146.49,146.45,0.12549]
[1723555957205,6.8276,146.47,146.45,0.37647]
[1723555957499,0.8187459,146.49,146.46,0.12549]
[1723555957701,0.8187459,146.49,146.47,0.12549]
[1723555958001,0.8187459,146.49,146.47,0.37647]
[1723555958178,0.8187459,146.49,146.48,0.12549]
[1723555958516,7.6451459,146.49,146.48,0.50196]
[1723555958877,0.8187459,146.49,146.48,0.50196]
[1723555960805,7.6451459,146.49,146.48,0.50196]
[1723555960995,7.6451459,146.49,146.48,0.37647]
[1723555961513,0.8187459,146.49,146.46,45.0]
[1723555962209,0.8187459,146.49,146.46,51.5741]
[1723555962408,0.8187459,146.49,146.47,23.8949]
[1723555962600,0.8187459,146.49,146.48,51.95229]
[1723555962787,0.8187459,146.49,146.48,52.32876]
[1723555963238,6.8228,146.57,146.53,0.12549]
[1723555963384,6.8228,146.57,146.53,45.50196]
[1723555963708,6.8228,146.57,146.53,52.32646]
[1723555963917,6.8223,146.58,146.54,6.824]
[1723555964095,6.8223,146.58,146.56,0.12549]
[1723555964290,39.29,146.62,146.56,0.12549]
[1723555964689,33.3723459,146.63,146.56,0.12549]
[1723555965017,17.0532,146.6,146.56,0.12549]
[1723555965317,6.8226,146.57,146.56,0.12549]
[1723555965683,6.8222,146.58,146.56,0.12549]
[1723555965891,6.8222,146.58,146.57,0.12549]
[1723555966104,6.8222,146.58,146.57,0.50196]
[1723555966809,6.8217,146.59,146.58,0.12549]
[1723555967014,6.8217,146.59,146.58,0.37647]
[1723555967402,6.8217,146.6,146.58,0.50196]
[1723555967607,6.8217,146.6,146.58,0.37647]
[1723555967809,6.8208,146.61,146.59,0.12549]
[1723555968116,7.6390459,146.63,146.6,0.12549]
[1723555968298,0.8187459,146.63,146.6,0.37647]
[1723555968500,0.8187459,146.63,146.61,0.12549]
[1723555968703,6.8203,146.62,146.61,0.25098]
[1723555968921,6.8203,146.62,146.61,0.37647]
[1723555969239,6.8203,146.62,146.61,0.25098]
[1723555969525,6.8226,146.58,146.53,32.4807]
[1723555969740,6.8217,146.59,146.54,6.824]
[1723555969902,6.822,146.59,146.54,6.824]
[1723555970109,57.1594459,146.63,146.53,17.0612]
[1723555970415,6.8223,146.58,146.54,6.824]
[1723555970597,6.8223,146.58,146.54,0.12549]
[1723555970804,6.823,146.57,146.53,17.0612]
[1723555971526,39.29,146.61,146.51,6.3091]
[1723555971697,56.3451,146.59,146.5,17.0645]
[1723555971902,6.8223,146.58,146.53,6.8244]
[1723555972200,6.8237,146.55,146.49,33.071]
[1723555972405,70.2037,146.6,146.49,16.0056]
[1723555972603,47.01,146.57,146.45,15.7289]
[1723555972820,6.8259,146.5,146.45,39.6273]
[1723555973118,47.01,146.54,146.43,6.3117]
[1723555973310,6.8269,146.48,146.43,13.1408]
[1723555973507,17.0633,146.52,146.43,13.1408]
[1723555973710,17.0633,146.52,146.43,6.3117]
[1723555973905,47.01,146.54,146.43,6.3117]
[1723555974113,20.0,146.53,146.43,6.3117]
[1723555974299,6.826,146.5,146.45,6.8278]
[1723555974923,6.8254,146.52,146.46,6.8275]
[1723555975127,6.8254,146.52,146.47,8.19147394]
[1723555975304,17.0593,146.55,146.46,17.0686]
[1723555975305,6.8255,146.51,146.46,23.8963]
[1723555975502,6.8256,146.51,146.47,0.12549]
[1723555975814,15.4926,146.56,146.49,17.0658]
[1723555976128,6.8245,146.53,146.5,45.25098]
[1723555976327,20.0,146.55,146.5,45.25098]
[1723555976328,6.8254,146.51,146.5,45.25098]
[1723555976704,6.8254,146.51,146.5,45.12549]
[1723555976922,6.8254,146.51,146.5,0.12549]
[1723555977230,37.0593,146.55,146.47,0.12549]
[1723555977526,37.0593,146.55,146.47,0.25098]
[1723555977708,6.826,146.5,146.47,0.25098]
[1723555977915,6.8269,146.48,146.46,0.12549]
[1723555978127,17.062,146.53,146.46,0.12549]
[1723555978128,6.1073,146.52,146.46,0.12549]
[1723555978329,6.8268,146.48,146.47,0.12549]
[1723555978625,6.8259,146.5,146.47,0.12549]
[1723555978827,53.1173,146.52,146.47,0.37647]
[1723555979016,6.8264,146.49,146.48,0.12549]
[1723555979212,6.8264,146.49,146.48,0.37647]
[1723555980031,6.8264,146.49,146.48,0.25098]
[1723555980233,53.1173,146.52,146.46,45.0]
[1723555980442,20.0,146.55,146.48,6.8266]
[1723555980743,6.8242,146.54,146.49,68.8918]
[1723555980935,13.4657,146.56,146.51,6.8253]
[1723555981104,6.8232,146.56,146.52,46.3646887]
[1723555981313,6.2806,146.59,146.53,0.12549]
[1723555981314,6.8237,146.55,146.53,0.12549]
[1723555981507,6.8237,146.55,146.53,0.50196]
[1723555981707,6.8232,146.56,146.53,0.50196]
[1723555981929,6.2806,146.59,146.53,0.50196]
[1723555982133,6.8226,146.57,146.53,17.56246]
[1723555982343,24.5198459,146.63,146.53,17.56246]
[1723555982344,6.8231,146.56,146.55,0.12549]
[1723555982635,6.8227,146.57,146.55,0.37647]
[1723555982936,7.4695459,146.63,146.56,0.12549]
[1723555982937,17.0511,146.62,146.56,0.12549]
[1723555983305,6.8231,146.56,146.55,0.12549]
[1723555983712,6.8231,146.56,146.55,0.37647]
[1723555984618,6.8227,146.57,146.55,0.37647]
[1723555984815,6.8231,146.56,146.55,0.37647]
[1723555985220,6.8231,146.56,146.55,0.50196]
[1723555985441,6.8227,146.57,146.55,0.50196]
[1723555985768,24.5197459,146.63,146.56,0.12549]
[1723555985939,6.8214,146.6,146.56,0.12549]
[1723555986241,6.8214,146.6,146.57,0.12549]
[1723555986436,7.4695459,146.63,146.57,0.37647]
[1723555986622,0.8187459,146.63,146.59,0.12549]
[1723555986936,6.8207,146.62,146.59,45.25098]
[1723555987235,6.8207,146.62,146.61,0.12549]
[1723555987415,6.8207,146.62,146.61,0.25098]
[1723555987618,7.6387459,146.63,146.61,0.50196]
[1723555987840,0.8187459,146.63,146.61,0.50196]
[1723555988149,0.8187459,146.63,146.62,0.37647]
[1723555988313,0.8187459,146.63,146.62,0.50196]
[1723555988515,0.8187459,146.63,146.62,7.32226]
[1723555988736,0.8187459,146.63,146.62,52.32226]
[1723555988921,0.8187459,146.63,146.62,45.50196]
[1723555989832,0.8187459,146.63,146.62,52.32226]
[1723555990149,15.9347,146.73,146.65,0.12549]
[1723555990150,6.8173,146.69,146.65,0.12549]
[1723555990447,6.8173,146.69,146.65,52.32076]
[1723555990816,6.8173,146.69,146.65,45.50196]
[1723555991014,6.8177,146.68,146.65,45.50196]
[1723555991349,6.8184,146.66,146.65,0.50196]
[1723555991640,6.8184,146.66,146.64,45.0]
[1723555991641,6.8185,146.66,146.6,17.0526]
[1723555992026,6.8185,146.66,146.61,6.8208]
[1723555992217,6.8181,146.67,146.62,6.8201]
[1723555992538,6.8181,146.67,146.6,17.0526]
[1723555992539,6.8171,146.69,146.64,6.819]
[1723555992714,6.8184,146.67,146.66,0.12549]
[1723555992912,6.8176,146.68,146.66,0.25098]
[1723555993131,6.8171,146.69,146.67,0.37647]
[1723555993316,39.12,146.72,146.68,0.25098]
[1723555993519,6.8166,146.7,146.69,0.12549]
[1723555993717,6.817,146.69,146.67,0.25098]
[1723555993937,6.8167,146.7,146.69,0.12549]
[1723555994243,32.9732,146.73,146.69,0.37647]
[1723555994244,15.9347,146.73,146.69,0.37647]
[1723555994434,6.8161,146.71,146.7,0.12549]
[1723555994638,6.8154,146.73,146.71,0.12549]
[1723555994841,62.2622,146.76,146.71,0.37647]
[1723555995045,62.2622,146.76,146.72,0.12549]
[1723555995046,6.815,146.74,146.72,0.12549]
[1723555995221,6.815,146.74,146.73,0.12549]
[1723555995425,6.8152,146.73,146.72,0.12549]
[1723555995645,23.1422,146.76,146.71,0.12549]
[1723555995945,23.1422,146.76,146.71,0.50196]
[1723555996144,6.8157,146.72,146.71,0.50196]
[1723555996334,6.8157,146.72,146.71,0.37647]
[1723555996843,6.8157,146.72,146.71,0.50196]
[1723555997024,55.5243,146.77,146.71,0.50196]
[1723555997222,6.8148,146.74,146.72,0.12549]
[1723555997623,55.5243,146.77,146.72,0.12549]
[1723555997624,6.8144,146.75,146.72,0.12549]
[1723555997945,6.8148,146.74,146.72,0.12549]
[1723555998143,6.8152,146.73,146.72,0.12549]
[1723555998325,6.8157,146.72,146.71,0.37647]
[1723555998660,6.8171,146.69,146.65,17.0468]
[1723555998816,6.8172,146.69,146.65,23.8657]
[1723555999020,6.8179,146.68,146.63,6.8195]
[1723555999220,6.8191,146.65,146.61,32.6766]
[1723555999517,6.8186,146.66,146.61,23.8715]
[1723555999758,6.819,146.65,146.61,17.0508]
[1723556000053,6.819,146.65,146.61,23.8714]
[1723556000217,39.12,146.69,146.61,17.0508]
[1723556000218,6.8176,146.68,146.61,17.0508]
[1723556000421,6.8181,146.67,146.62,6.8202]
[1723556000653,6.818,146.67,146.63,6.8198]
[1723556000950,6.8185,146.66,146.61,23.8715]
[1723556001150,6.8181,146.67,146.62,6.8202]
[1723556001329,17.0447,146.68,146.58,23.141]
[1723556001649,17.047,146.66,146.56,15.6258]
[1723556001852,39.12,146.65,146.56,22.4488]
[1723556002146,39.12,146.63,146.53,6.0358]
[1723556002358,6.8227,146.57,146.52,39.2925]
[1723556002537,39.12,146.61,146.52,39.2925]
[1723556002538,6.8223,146.58,146.53,6.8243]
[1723556003046,6.8218,146.59,146.52,32.4677]
[1723556003261,39.12,146.61,146.52,39.2925]
[1723556003441,6.823,146.57,146.52,39.2925]
[1723556003744,6.8223,146.58,146.52,17.0619]
[1723556003932,6.8218,146.59,146.52,17.0619]
[1723556004134,17.0514,146.62,146.55,6.8235]
[1723556004135,6.8213,146.6,146.55,6.8235]
[1723556004352,6.8208,146.61,146.54,17.0594]
[1723556004584,6.8223,146.58,146.54,17.0594]
[1723556004866,6.8211,146.61,146.57,6.8226]
[1723556005167,6.82,146.63,146.59,0.12549]
[1723556005375,6.8194,146.65,146.59,0.12549]
[1723556005535,6.5473,146.68,146.62,6.8199]
[1723556005740,6.5473,146.68,146.63,45.50196]
[1723556005938,6.8194,146.64,146.63,45.50196]
[1723556006155,6.819,146.65,146.63,45.50196]
[1723556006352,6.5473,146.68,146.63,45.50196]
[1723556006671,6.819,146.65,146.63,0.50196]
[1723556007578,6.8194,146.64,146.63,0.50196]
[1723556008081,6.8191,146.65,146.63,0.50196]
[1723556008548,6.5473,146.68,146.63,0.50196]
[1723556008549,6.8194,146.64,146.63,0.50196]
[1723556009436,6.819,146.65,146.63,0.50196]
[1723556009641,6.5473,146.68,146.63,0.50196]
[1723556009948,6.8188,146.66,146.63,0.50196]
[1723556010268,6.8171,146.69,146.65,0.12549]
[1723556010479,6.2859,146.73,146.67,0.12549]
[1723556010786,23.3245,146.73,146.67,0.12549]
[1723556010969,70.2745,146.73,146.67,0.12549]
[1723556011167,6.8175,146.68,146.67,0.12549]
[1723556011368,6.8171,146.69,146.67,0.12549]
[1723556012048,6.817,146.7,146.67,0.12549]
[1723556012254,70.2745,146.73,146.67,0.12549]
[1723556012555,6.8175,146.68,146.67,0.12549]
[1723556013673,6.8186,146.66,146.61,6.8206]
[1723556013847,1.70460034,146.69,146.6,17.0527]
[1723556014174,17.041,146.71,146.57,97.93641114]
[1723556014376,20.0,146.7,146.57,97.93641114]
[1723556014593,20.0,146.7,146.63,17.0492]
[1723556015075,6.8184,146.67,146.64,0.25098]
[1723556015254,6.8184,146.66,146.65,0.12549]
[1723556016579,6.8181,146.67,146.66,0.12549]
[1723556016757,6.8179,146.68,146.66,0.25098]
[1723556016957,6.818,146.67,146.66,0.12549]
[1723556017169,6.818,146.67,146.65,0.25098]
[1723556017390,6.818,146.67,146.66,0.12549]
[1723556017677,6.8184,146.66,146.65,0.25098]
[1723556017882,6.8186,146.66,146.61,17.0513]
[1723556018108,17.0442,146.68,146.58,17.0546]
[1723556018261,17.0469,146.66,146.58,23.8767]
[1723556018449,6.82,146.63,146.58,23.8767]
[1723556018653,6.8195,146.64,146.58,17.0546]
[1723556018970,6.8195,146.64,146.6,6.821]
[1723556019167,6.8193,146.65,146.6,6.8211]
[1723556019477,17.0435,146.69,146.6,17.0525]
[1723556019687,20.0,146.68,146.61,0.25098]
[1723556019985,20.0,146.68,146.63,6.8194]
[1723556019986,6.8176,146.68,146.63,6.8194]
[1723556020284,6.8176,146.68,146.65,0.12549]
[1723556020481,6.8174,146.69,146.65,0.25098]
[1723556020689,6.8183,146.67,146.66,0.12549]
[1723556020894,6.8176,146.68,146.66,0.37647]
[1723556021068,6.8172,146.69,146.67,0.12549]
[1723556021381,6.8167,146.7,146.67,0.25098]
[1723556021592,6.8167,146.7,146.68,0.25098]
[1723556021884,6.8167,146.7,146.69,0.25098]
[1723556022086,6.2859,146.73,146.69,0.50196]
[1723556022267,6.8158,146.72,146.7,0.12549]
[1723556022470,6.2859,146.73,146.7,0.12549]
[1723556022666,6.2859,146.73,146.69,0.37647]
[1723556022857,6.8166,146.7,146.69,0.37647]
[1723556023061,6.8166,146.7,146.69,0.50196]
[1723556023556,6.2859,146.73,146.69,0.50196]
[1723556023761,6.8163,146.71,146.7,0.37647]
[1723556024161,6.8163,146.71,146.7,0.50196]
[1723556024375,6.8157,146.72,146.71,0.12549]
[1723556024772,6.3639,146.76,146.71,0.12549]